[Event "Titled Tuesday Blitz March 21 Early 2023"]
[White "Rom, Jasper"]
[Black "Klepikov, Nikita"]
[WhiteFideId "2023733"]
[BlackFideId "24145220"]
[WhiteElo "2233"]
[BlackElo "2025"]
[Result "1/2-1/2"]
[Round "11"]
[TimeControl "180+2"]
[Date "2023.03.21"]
[WhiteClock "0:00:03"]
[BlackClock "0:00:06"]

1. e4 {[%clk 0:03:00]}  c5 {[%clk 0:02:54]} 2. Nc3 {[%clk 0:02:59]}  Nc6 {[%clk 0:02:51]} 3. f4 {[%clk 0:02:59]}  g6 {[%clk 0:02:49]} 4. Nf3 {[%clk 0:02:59]}  Bg7 {[%clk 0:02:49]} 5. Bb5 {[%clk 0:02:59]}  Nd4 {[%clk 0:02:50]} 6. O-O {[%clk 0:02:59]}  Nxb5 {[%clk 0:02:49]} 7. Nxb5 {[%clk 0:03:00]}  d6 {[%clk 0:02:46]} 8. d3 {[%clk 0:03:00]}  e6 {[%clk 0:02:43]} 9. e5 {[%clk 0:02:56]}  d5 {[%clk 0:02:27]} 10. Nd6+ {[%clk 0:02:55]}  Kf8 {[%clk 0:02:27]} 11. c4 {[%clk 0:02:47]}  d4 {[%clk 0:02:13]} 12. a3 {[%clk 0:02:38]}  a5 {[%clk 0:01:47]} 13. Rb1 {[%clk 0:02:11]}  h6 {[%clk 0:01:14]} 14. b4 {[%clk 0:02:08]}  axb4 {[%clk 0:01:04]} 15. axb4 {[%clk 0:02:09]}  b6 {[%clk 0:01:02]} 16. bxc5 {[%clk 0:02:04]}  bxc5 {[%clk 0:01:03]} 17. Rb5 {[%clk 0:02:04]}  Qc7 {[%clk 0:01:02]} 18. Qb3 {[%clk 0:01:57]}  Ba6 {[%clk 0:00:55]} 19. Rb6 {[%clk 0:01:47]}  Ne7 {[%clk 0:00:50]} 20. Bd2 {[%clk 0:01:46]}  Nc8 {[%clk 0:00:36]} 21. Nxc8 {[%clk 0:01:31]}  Bxc8 {[%clk 0:00:36]} 22. Rb1 {[%clk 0:01:06]}  Kg8 {[%clk 0:00:32]} 23. h4 {[%clk 0:01:05]}  Kh7 {[%clk 0:00:30]} 24. h5 {[%clk 0:01:06]}  Bd7 {[%clk 0:00:18]} 25. Rb7 {[%clk 0:01:02]}  Qc6 {[%clk 0:00:17]} 26. hxg6+ {[%clk 0:00:50]}  Kxg6 {[%clk 0:00:16]} 27. Qd1 {[%clk 0:00:40]}  Ra2 {[%clk 0:00:13]} 28. R1b6 {[%clk 0:00:35]}  Qa4 {[%clk 0:00:11]} 29. Qe1 {[%clk 0:00:30]}  Ra1 {[%clk 0:00:10]} 30. Bc1 {[%clk 0:00:28]}  Qc2 {[%clk 0:00:09]} 31. Qg3+ {[%clk 0:00:23]}  Kh7 {[%clk 0:00:08]} 32. Rxd7 {[%clk 0:00:24]}  Qxc1+ {[%clk 0:00:09]} 33. Ne1 {[%clk 0:00:18]}  Qxe1+ {[%clk 0:00:09]} 34. Qxe1 {[%clk 0:00:18]}  Rxe1+ {[%clk 0:00:10]} 35. Kf2 {[%clk 0:00:19]}  Re3 {[%clk 0:00:08]} 36. Rxf7 {[%clk 0:00:18]}  Rxd3 {[%clk 0:00:08]} 37. Rbb7 {[%clk 0:00:18]}  Rg8 {[%clk 0:00:08]} 38. g4 {[%clk 0:00:18]}  Kg6 {[%clk 0:00:07]} 39. f5+ {[%clk 0:00:16]}  exf5 {[%clk 0:00:07]} 40. gxf5+ {[%clk 0:00:17]}  Kg5 {[%clk 0:00:06]} 41. f6 {[%clk 0:00:08]}  Bxf6 {[%clk 0:00:07]} 42. Rxf6 {[%clk 0:00:07]}  Re8 {[%clk 0:00:06]} 43. Rg7+ {[%clk 0:00:06]}  Kh5 {[%clk 0:00:06]} 44. Rf5+ {[%clk 0:00:06]}  Kh4 {[%clk 0:00:06]} 45. Rf4+ {[%clk 0:00:06]}  Kh5 {[%clk 0:00:06]} 46. Rf5+ {[%clk 0:00:07]}  Kh4 {[%clk 0:00:07]} 47. Rf4+ {[%clk 0:00:06]}  Kh5 {[%clk 0:00:06]} 48. Rf5+ {[%clk 0:00:03]} 1/2-1/2


[Site "https://www.chess.com"]

[Event "Titled Tuesday Blitz March 21 Early 2023"]
[White "Tanmay Jain"]
[Black "Krzywda, Andrzej"]
[WhiteFideId "45015481"]
[BlackFideId "1114565"]
[WhiteElo "2032"]
[BlackElo "2155"]
[Result "1-0"]
[Round "11"]
[TimeControl "180+2"]
[Date "2023.03.21"]
[WhiteClock "0:00:07"]
[BlackClock "0:00:06"]

1. d4 {[%clk 0:02:58]}  Nf6 {[%clk 0:02:54]} 2. Nf3 {[%clk 0:02:56]}  g6 {[%clk 0:02:54]} 3. g3 {[%clk 0:02:57]}  Bg7 {[%clk 0:02:53]} 4. Bg2 {[%clk 0:02:58]}  O-O {[%clk 0:02:54]} 5. O-O {[%clk 0:02:59]}  d6 {[%clk 0:02:54]} 6. Re1 {[%clk 0:02:58]}  d5 {[%clk 0:02:52]} 7. Ne5 {[%clk 0:02:56]}  c5 {[%clk 0:02:50]} 8. c3 {[%clk 0:02:53]}  Nc6 {[%clk 0:02:49]} 9. Nxc6 {[%clk 0:02:51]}  bxc6 {[%clk 0:02:50]} 10. dxc5 {[%clk 0:02:51]}  e5 {[%clk 0:02:43]} 11. Qa4 {[%clk 0:02:48]}  Qc7 {[%clk 0:02:39]} 12. Nd2 {[%clk 0:02:45]}  Re8 {[%clk 0:02:35]} 13. e4 {[%clk 0:02:44]}  Be6 {[%clk 0:02:30]} 14. b4 {[%clk 0:02:38]}  a5 {[%clk 0:02:30]} 15. Qc2 {[%clk 0:02:33]}  dxe4 {[%clk 0:02:22]} 16. Bb2 {[%clk 0:02:16]}  axb4 {[%clk 0:02:12]} 17. cxb4 {[%clk 0:02:17]}  Rxa2 {[%clk 0:02:12]} 18. Rxa2 {[%clk 0:02:16]}  Bxa2 {[%clk 0:02:13]} 19. Nxe4 {[%clk 0:02:16]}  Nxe4 {[%clk 0:02:08]} 20. Bxe4 {[%clk 0:02:16]}  Rb8 {[%clk 0:01:59]} 21. Qa4 {[%clk 0:01:55]}  Bd5 {[%clk 0:01:52]} 22. Bxd5 {[%clk 0:01:54]}  cxd5 {[%clk 0:01:53]} 23. Rc1 {[%clk 0:01:55]}  Bf8 {[%clk 0:01:40]} 24. Qb3 {[%clk 0:01:28]}  d4 {[%clk 0:01:35]} 25. Qc4 {[%clk 0:01:21]}  Qc6 {[%clk 0:01:34]} 26. Re1 {[%clk 0:01:20]}  Qb5 {[%clk 0:01:10]} 27. Qxb5 {[%clk 0:00:15]}  Rxb5 {[%clk 0:01:11]} 28. Ba3 {[%clk 0:00:12]}  f6 {[%clk 0:01:11]} 29. f4 {[%clk 0:00:12]}  exf4 {[%clk 0:01:01]} 30. gxf4 {[%clk 0:00:12]}  Kf7 {[%clk 0:00:52]} 31. Rd1 {[%clk 0:00:12]}  Ke6 {[%clk 0:00:44]} 32. Rxd4 {[%clk 0:00:12]}  Kf5 {[%clk 0:00:45]} 33. Rc4 {[%clk 0:00:12]}  Rb8 {[%clk 0:00:35]} 34. Kf2 {[%clk 0:00:12]}  Ra8 {[%clk 0:00:26]} 35. Bc1 {[%clk 0:00:13]}  Rc8 {[%clk 0:00:20]} 36. Kf3 {[%clk 0:00:13]}  g5 {[%clk 0:00:19]} 37. Be3 {[%clk 0:00:12]}  g4+ {[%clk 0:00:18]} 38. Kf2 {[%clk 0:00:12]}  h5 {[%clk 0:00:18]} 39. b5 {[%clk 0:00:12]}  h4 {[%clk 0:00:18]} 40. b6 {[%clk 0:00:12]}  Ke6 {[%clk 0:00:15]} 41. c6 {[%clk 0:00:10]}  Kd5 {[%clk 0:00:15]} 42. b7 {[%clk 0:00:09]}  Rb8 {[%clk 0:00:10]} 43. c7 {[%clk 0:00:09]}  Rxb7 {[%clk 0:00:10]} 44. c8=Q {[%clk 0:00:09]}  Rb2+ {[%clk 0:00:11]} 45. Rc2 {[%clk 0:00:09]}  Bc5 {[%clk 0:00:06]} 46. Qxc5+ {[%clk 0:00:09]}  Ke4 {[%clk 0:00:06]} 47. Rxb2 {[%clk 0:00:08]}  f5 {[%clk 0:00:06]} 48. Qd4# {[%clk 0:00:07]} 1-0


[Site "https://www.chess.com"]

[Event "Titled Tuesday Blitz March 21 Early 2023"]
[White "Manukian, Artak"]
[Black "Buscar, Michael"]
[WhiteFideId "13301373"]
[BlackFideId "2603616"]
[WhiteElo "2130"]
[BlackElo "2010"]
[Result "1-0"]
[Round "11"]
[TimeControl "180+2"]
[Date "2023.03.21"]
[WhiteClock "0:02:01"]
[BlackClock "0:02:01"]

1. e4 {[%clk 0:03:00]}  c5 {[%clk 0:02:43]} 2. Nf3 {[%clk 0:03:00]}  Nc6 {[%clk 0:02:43]} 3. c3 {[%clk 0:03:00]}  Nf6 {[%clk 0:02:43]} 4. e5 {[%clk 0:03:00]}  Nd5 {[%clk 0:02:43]} 5. d4 {[%clk 0:03:01]}  cxd4 {[%clk 0:02:43]} 6. cxd4 {[%clk 0:03:02]}  d6 {[%clk 0:02:43]} 7. Nc3 {[%clk 0:03:03]}  Nxc3 {[%clk 0:02:37]} 8. bxc3 {[%clk 0:03:04]}  dxe5 {[%clk 0:02:37]} 9. d5 {[%clk 0:03:05]}  Nb8 {[%clk 0:02:35]} 10. Nxe5 {[%clk 0:03:05]}  a6 {[%clk 0:02:28]} 11. Qf3 {[%clk 0:03:01]}  f6 {[%clk 0:02:18]} 12. Qh5+ {[%clk 0:03:01]}  g6 {[%clk 0:02:19]} 13. Nxg6 {[%clk 0:03:01]}  hxg6 {[%clk 0:02:19]} 14. Qxh8 {[%clk 0:03:01]}  Qxd5 {[%clk 0:02:19]} 15. Bh6 {[%clk 0:02:56]}  Nd7 {[%clk 0:02:16]} 16. Rd1 {[%clk 0:02:50]}  Qe5+ {[%clk 0:02:15]} 17. Be2 {[%clk 0:02:47]}  Qxc3+ {[%clk 0:02:15]} 18. Kf1 {[%clk 0:02:46]}  Kf7 {[%clk 0:02:10]} 19. Qh7+ {[%clk 0:02:41]}  Ke6 {[%clk 0:02:10]} 20. Qg8+ {[%clk 0:02:33]}  Kf5 {[%clk 0:02:10]} 21. g4+ {[%clk 0:02:32]}  Ke4 {[%clk 0:02:09]} 22. f3+ {[%clk 0:02:29]}  Ke5 {[%clk 0:02:06]} 23. f4+ {[%clk 0:02:26]}  Ke4 {[%clk 0:02:06]} 24. Qxg6+ {[%clk 0:02:25]}  Ke3 {[%clk 0:02:01]} 25. Rd3+ {[%clk 0:02:01]} 1-0


[Site "https://www.chess.com"]

[Event "Titled Tuesday Blitz March 21 Early 2023"]
[White "Omariev, Maksim"]
[Black "Kostiukov, Alexandr"]
[WhiteFideId "4193423"]
[BlackFideId "14108100"]
[WhiteElo "2458"]
[BlackElo "2202"]
[Result "0-1"]
[Round "11"]
[TimeControl "180+2"]
[Date "2023.03.21"]
[WhiteClock "0:00:04"]
[BlackClock "0:01:42"]

1. h4 {[%clk 0:03:00]}  c5 {[%clk 0:02:53]} 2. h5 {[%clk 0:03:01]}  Nc6 {[%clk 0:02:53]} 3. h6 {[%clk 0:03:02]}  Nxh6 {[%clk 0:02:52]} 4. d4 {[%clk 0:03:03]}  cxd4 {[%clk 0:02:51]} 5. c3 {[%clk 0:03:04]}  dxc3 {[%clk 0:02:45]} 6. Nxc3 {[%clk 0:03:05]}  e6 {[%clk 0:02:44]} 7. Bxh6 {[%clk 0:03:05]}  gxh6 {[%clk 0:02:44]} 8. e4 {[%clk 0:03:06]}  Bg7 {[%clk 0:02:44]} 9. Nf3 {[%clk 0:03:06]}  a6 {[%clk 0:02:37]} 10. Be2 {[%clk 0:03:01]}  O-O {[%clk 0:02:31]} 11. Qd6 {[%clk 0:02:57]}  Qb6 {[%clk 0:02:26]} 12. O-O {[%clk 0:02:11]}  Qxb2 {[%clk 0:02:22]} 13. Rac1 {[%clk 0:00:40]}  Bxc3 {[%clk 0:02:20]} 14. Rxc3 {[%clk 0:00:37]}  Qxc3 {[%clk 0:02:20]} 15. Rd1 {[%clk 0:00:33]}  f5 {[%clk 0:02:05]} 16. exf5 {[%clk 0:00:27]}  Rxf5 {[%clk 0:02:01]} 17. Bd3 {[%clk 0:00:27]}  Rd5 {[%clk 0:01:54]} 18. Bxh7+ {[%clk 0:00:07]}  Kxh7 {[%clk 0:01:43]} 19. Rxd5 {[%clk 0:00:06]}  exd5 {[%clk 0:01:43]} 20. Nh4 {[%clk 0:00:06]}  Qa1+ {[%clk 0:01:42]} 21. Kh2 {[%clk 0:00:04]}  Qe5+ {[%clk 0:01:42]} 0-1


[Site "https://www.chess.com"]

[Event "Titled Tuesday Blitz March 21 Early 2023"]
[White "Mazurkiewicz, Michal"]
[Black "sebastianmarinp"]
[WhiteFideId "1124943"]
[WhiteElo "2054"]
[BlackElo "2297"]
[Result "0-1"]
[Round "11"]
[TimeControl "180+2"]
[Date "2023.03.21"]
[WhiteClock "0:00:03"]
[BlackClock "0:00:06"]

1. e4 {[%clk 0:02:59]}  e5 {[%clk 0:02:59]} 2. Nf3 {[%clk 0:03:00]}  Nc6 {[%clk 0:02:59]} 3. Bb5 {[%clk 0:02:58]}  a6 {[%clk 0:02:59]} 4. Bxc6 {[%clk 0:02:58]}  dxc6 {[%clk 0:02:59]} 5. O-O {[%clk 0:02:59]}  f6 {[%clk 0:02:46]} 6. d4 {[%clk 0:02:59]}  exd4 {[%clk 0:02:45]} 7. Nxd4 {[%clk 0:03:00]}  Ne7 {[%clk 0:02:38]} 8. Nc3 {[%clk 0:02:56]}  Ng6 {[%clk 0:02:37]} 9. Be3 {[%clk 0:02:53]}  Bd6 {[%clk 0:02:29]} 10. Qe2 {[%clk 0:02:43]}  O-O {[%clk 0:02:26]} 11. f4 {[%clk 0:02:43]}  c5 {[%clk 0:02:16]} 12. Nb3 {[%clk 0:02:43]}  b6 {[%clk 0:02:14]} 13. Rad1 {[%clk 0:02:41]}  Qe8 {[%clk 0:02:09]} 14. Nd5 {[%clk 0:02:39]}  Qxe4 {[%clk 0:01:55]} 15. Nxb6 {[%clk 0:02:37]}  cxb6 {[%clk 0:01:48]} 16. Rxd6 {[%clk 0:02:36]}  Re8 {[%clk 0:01:47]} 17. Rf3 {[%clk 0:01:55]}  Bg4 {[%clk 0:01:42]} 18. Nd2 {[%clk 0:01:20]}  Bxf3 {[%clk 0:01:39]} 19. Nxf3 {[%clk 0:01:13]}  Qxe3+ {[%clk 0:01:38]} 20. Qxe3 {[%clk 0:01:09]}  Rxe3 {[%clk 0:01:39]} 21. Kf2 {[%clk 0:01:09]}  Rae8 {[%clk 0:01:31]} 22. Rxb6 {[%clk 0:01:04]}  Nxf4 {[%clk 0:01:21]} 23. Nh4 {[%clk 0:00:58]}  Nd5 {[%clk 0:01:10]} 24. Rd6 {[%clk 0:00:53]}  Re2+ {[%clk 0:01:07]} 25. Kf3 {[%clk 0:00:53]}  R8e3+ {[%clk 0:01:03]} 26. Kg4 {[%clk 0:00:53]}  Ne7 {[%clk 0:00:53]} 27. g3 {[%clk 0:00:43]}  Rxh2 {[%clk 0:00:47]} 28. Nf3 {[%clk 0:00:41]}  Rxc2 {[%clk 0:00:44]} 29. Kf4 {[%clk 0:00:39]}  Rxf3+ {[%clk 0:00:34]} 30. Kxf3 {[%clk 0:00:39]}  Rxb2 {[%clk 0:00:35]} 31. Rxa6 {[%clk 0:00:39]}  c4 {[%clk 0:00:33]} 32. Ke4 {[%clk 0:00:37]}  Rd2 {[%clk 0:00:27]} 33. Ra7 {[%clk 0:00:29]}  Kf7 {[%clk 0:00:26]} 34. a4 {[%clk 0:00:29]}  c3 {[%clk 0:00:25]} 35. Rc7 {[%clk 0:00:29]}  Ra2 {[%clk 0:00:24]} 36. Rxc3 {[%clk 0:00:28]}  Rxa4+ {[%clk 0:00:24]} 37. Kf3 {[%clk 0:00:29]}  Nf5 {[%clk 0:00:23]} 38. Rc7+ {[%clk 0:00:29]}  Kg6 {[%clk 0:00:22]} 39. Rc3 {[%clk 0:00:29]}  Nd4+ {[%clk 0:00:20]} 40. Kg2 {[%clk 0:00:29]}  Ne6 {[%clk 0:00:21]} 41. Kh3 {[%clk 0:00:28]}  Ng5+ {[%clk 0:00:21]} 42. Kg2 {[%clk 0:00:28]}  Ra2+ {[%clk 0:00:22]} 43. Kf1 {[%clk 0:00:28]}  h5 {[%clk 0:00:22]} 44. Kg1 {[%clk 0:00:26]}  Nh3+ {[%clk 0:00:21]} 45. Kf1 {[%clk 0:00:26]}  Kf5 {[%clk 0:00:20]} 46. Rc4 {[%clk 0:00:22]}  Rf2+ {[%clk 0:00:18]} 47. Ke1 {[%clk 0:00:23]}  Rg2 {[%clk 0:00:18]} 48. Rc3 {[%clk 0:00:14]}  Kg4 {[%clk 0:00:18]} 49. Rc4+ {[%clk 0:00:14]}  Kxg3 {[%clk 0:00:18]} 50. Rc3+ {[%clk 0:00:14]}  Kg4 {[%clk 0:00:17]} 51. Rc4+ {[%clk 0:00:14]}  Nf4 {[%clk 0:00:18]} 52. Kf1 {[%clk 0:00:15]}  Ra2 {[%clk 0:00:18]} 53. Rb4 {[%clk 0:00:14]}  h4 {[%clk 0:00:17]} 54. Kg1 {[%clk 0:00:14]}  h3 {[%clk 0:00:17]} 55. Kh1 {[%clk 0:00:14]}  g5 {[%clk 0:00:16]} 56. Rc4 {[%clk 0:00:12]}  Kg3 {[%clk 0:00:14]} 57. Rc3+ {[%clk 0:00:12]}  Kh4 {[%clk 0:00:14]} 58. Rc4 {[%clk 0:00:11]}  f5 {[%clk 0:00:13]} 59. Rb4 {[%clk 0:00:11]}  Kg4 {[%clk 0:00:12]} 60. Rc4 {[%clk 0:00:11]}  Ra1+ {[%clk 0:00:12]} 61. Kh2 {[%clk 0:00:11]}  Ra2+ {[%clk 0:00:13]} 62. Kh1 {[%clk 0:00:11]}  Kf3 {[%clk 0:00:11]} 63. Rc3+ {[%clk 0:00:10]}  Kf2 {[%clk 0:00:10]} 64. Rc5 {[%clk 0:00:09]}  g4 {[%clk 0:00:06]} 65. Rxf5 {[%clk 0:00:09]}  Kg3 {[%clk 0:00:06]} 66. Ra5 {[%clk 0:00:04]}  Rxa5 {[%clk 0:00:05]} 67. Kg1 {[%clk 0:00:03]}  Ra1# {[%clk 0:00:06]} 0-1


[Site "https://www.chess.com"]

[Event "Titled Tuesday Blitz March 21 Early 2023"]
[White "Begunov, Konstantin"]
[Black "Simonovic, Miroslav"]
[WhiteFideId "4118510"]
[BlackFideId "919152"]
[WhiteElo "2079"]
[BlackElo "2042"]
[Result "1-0"]
[Round "11"]
[TimeControl "180+2"]
[Date "2023.03.21"]
[WhiteClock "0:00:17"]
[BlackClock "0:00:07"]

1. d4 {[%clk 0:02:56]}  Nf6 {[%clk 0:02:59]} 2. c4 {[%clk 0:02:56]}  c5 {[%clk 0:02:59]} 3. Nf3 {[%clk 0:02:56]}  b6 {[%clk 0:02:59]} 4. dxc5 {[%clk 0:02:55]}  bxc5 {[%clk 0:02:59]} 5. g3 {[%clk 0:02:56]}  Bb7 {[%clk 0:02:58]} 6. Bg2 {[%clk 0:02:56]}  g6 {[%clk 0:02:59]} 7. Nc3 {[%clk 0:02:56]}  Bg7 {[%clk 0:02:59]} 8. O-O {[%clk 0:02:57]}  O-O {[%clk 0:02:59]} 9. Qc2 {[%clk 0:02:57]}  d6 {[%clk 0:02:58]} 10. Rd1 {[%clk 0:02:57]}  Nbd7 {[%clk 0:02:58]} 11. b3 {[%clk 0:02:57]}  Rb8 {[%clk 0:02:44]} 12. Bb2 {[%clk 0:02:57]}  Ng4 {[%clk 0:02:44]} 13. Nd5 {[%clk 0:02:50]}  Nge5 {[%clk 0:02:37]} 14. Nxe5 {[%clk 0:02:31]}  Nxe5 {[%clk 0:02:38]} 15. Rd2 {[%clk 0:02:25]}  Re8 {[%clk 0:02:28]} 16. Rad1 {[%clk 0:02:24]}  Nc6 {[%clk 0:02:13]} 17. Bxg7 {[%clk 0:02:22]}  Kxg7 {[%clk 0:02:14]} 18. h4 {[%clk 0:02:13]}  h5 {[%clk 0:02:02]} 19. Qc3+ {[%clk 0:02:02]}  f6 {[%clk 0:02:02]} 20. Nf4 {[%clk 0:01:52]}  Qc8 {[%clk 0:01:17]} 21. Bh3 {[%clk 0:01:49]}  e6 {[%clk 0:01:04]} 22. Rxd6 {[%clk 0:01:48]}  Nd4 {[%clk 0:00:53]} 23. Qd3 {[%clk 0:00:44]}  f5 {[%clk 0:00:33]} 24. e3 {[%clk 0:00:28]}  Qc7 {[%clk 0:00:32]} 25. Rxd4 {[%clk 0:00:20]}  cxd4 {[%clk 0:00:31]} 26. exd4 {[%clk 0:00:20]}  Be4 {[%clk 0:00:28]} 27. Qe3 {[%clk 0:00:20]}  Qb7 {[%clk 0:00:20]} 28. Bf1 {[%clk 0:00:18]}  Rbd8 {[%clk 0:00:18]} 29. Be2 {[%clk 0:00:18]}  e5 {[%clk 0:00:15]} 30. dxe5 {[%clk 0:00:15]}  Rxd1+ {[%clk 0:00:14]} 31. Bxd1 {[%clk 0:00:16]}  Rxe5 {[%clk 0:00:12]} 32. Qd4 {[%clk 0:00:16]}  Qe7 {[%clk 0:00:12]} 33. f3 {[%clk 0:00:16]}  Bb7 {[%clk 0:00:11]} 34. Nd3 {[%clk 0:00:16]}  Kf6 {[%clk 0:00:10]} 35. f4 {[%clk 0:00:16]}  Be4 {[%clk 0:00:05]} 36. Qxe5+ {[%clk 0:00:17]}  Qxe5 {[%clk 0:00:05]} 37. Nxe5 {[%clk 0:00:17]}  Bb1 {[%clk 0:00:04]} 38. a3 {[%clk 0:00:17]}  Ba2 {[%clk 0:00:04]} 39. Kf2 {[%clk 0:00:18]}  a5 {[%clk 0:00:05]} 40. a4 {[%clk 0:00:17]}  Bb1 {[%clk 0:00:04]} 41. Ke3 {[%clk 0:00:17]}  Be4 {[%clk 0:00:04]} 42. Kd4 {[%clk 0:00:18]}  Ke6 {[%clk 0:00:05]} 43. c5 {[%clk 0:00:18]}  Kf6 {[%clk 0:00:04]} 44. Be2 {[%clk 0:00:18]}  Bc6 {[%clk 0:00:05]} 45. Bb5 {[%clk 0:00:18]}  Bb7 {[%clk 0:00:05]} 46. c6 {[%clk 0:00:19]}  Bc8 {[%clk 0:00:06]} 47. Kc5 {[%clk 0:00:19]}  g5 {[%clk 0:00:07]} 48. hxg5+ {[%clk 0:00:18]}  Ke7 {[%clk 0:00:07]} 49. Kb6 {[%clk 0:00:18]}  Kd6 {[%clk 0:00:07]} 50. Kxa5 {[%clk 0:00:18]}  h4 {[%clk 0:00:07]} 51. gxh4 {[%clk 0:00:17]}  Kd5 {[%clk 0:00:08]} 52. Kb6 {[%clk 0:00:17]}  Ke4 {[%clk 0:00:08]} 53. g6 {[%clk 0:00:17]}  Kxf4 {[%clk 0:00:08]} 54. Nd7 {[%clk 0:00:17]}  Kg4 {[%clk 0:00:07]} 55. g7 {[%clk 0:00:17]}  f4 {[%clk 0:00:07]} 56. g8=Q+ {[%clk 0:00:17]} 1-0


[Site "https://www.chess.com"]

[Event "Titled Tuesday Blitz March 21 Early 2023"]
[White "Fernandez Hernandez, Gerardo"]
[Black "Yelisieiev, Yevhenii"]
[WhiteFideId "2207400"]
[BlackFideId "14139642"]
[WhiteElo "2228"]
[BlackElo "2447"]
[Result "0-1"]
[Round "11"]
[TimeControl "180+2"]
[Date "2023.03.21"]
[WhiteClock "0:00:01"]
[BlackClock "0:01:01"]

1. e4 {[%clk 0:03:00]}  d6 {[%clk 0:03:00]} 2. d3 {[%clk 0:03:00]}  e5 {[%clk 0:02:58]} 3. g3 {[%clk 0:02:59]}  Ne7 {[%clk 0:02:58]} 4. Bg2 {[%clk 0:02:59]}  g6 {[%clk 0:02:59]} 5. c4 {[%clk 0:03:00]}  Bg7 {[%clk 0:03:00]} 6. Nc3 {[%clk 0:03:00]}  O-O {[%clk 0:03:01]} 7. Nge2 {[%clk 0:03:00]}  Nbc6 {[%clk 0:03:01]} 8. O-O {[%clk 0:02:53]}  Nd4 {[%clk 0:03:02]} 9. Nxd4 {[%clk 0:02:52]}  exd4 {[%clk 0:03:02]} 10. Ne2 {[%clk 0:02:53]}  f5 {[%clk 0:03:01]} 11. b4 {[%clk 0:02:43]}  fxe4 {[%clk 0:03:01]} 12. Bxe4 {[%clk 0:02:42]}  d5 {[%clk 0:03:01]} 13. cxd5 {[%clk 0:02:38]}  Nxd5 {[%clk 0:02:59]} 14. Bxd5+ {[%clk 0:02:37]}  Qxd5 {[%clk 0:02:59]} 15. Qb3 {[%clk 0:02:37]}  Qxb3 {[%clk 0:02:46]} 16. axb3 {[%clk 0:02:38]}  Rf3 {[%clk 0:02:39]} 17. Nf4 {[%clk 0:02:25]}  b6 {[%clk 0:02:11]} 18. Re1 {[%clk 0:01:42]}  g5 {[%clk 0:02:08]} 19. Nd5 {[%clk 0:01:37]}  Bh3 {[%clk 0:01:58]} 20. Bxg5 {[%clk 0:01:27]}  Raf8 {[%clk 0:01:53]} 21. Nf4 {[%clk 0:01:24]}  h6 {[%clk 0:01:43]} 22. Be7 {[%clk 0:01:11]}  R8xf4 {[%clk 0:01:43]} 23. gxf4 {[%clk 0:01:08]}  Rxd3 {[%clk 0:01:43]} 24. Rac1 {[%clk 0:00:50]}  Rxb3 {[%clk 0:01:36]} 25. Rxc7 {[%clk 0:00:49]}  d3 {[%clk 0:01:36]} 26. Bd6 {[%clk 0:00:17]}  d2 {[%clk 0:01:31]} 27. Rd1 {[%clk 0:00:17]}  Bc3 {[%clk 0:01:19]} 28. Be5 {[%clk 0:00:12]}  Bxb4 {[%clk 0:01:13]} 29. Rg7+ {[%clk 0:00:12]}  Kf8 {[%clk 0:01:13]} 30. Rg3 {[%clk 0:00:12]}  Rxg3+ {[%clk 0:01:12]} 31. fxg3 {[%clk 0:00:12]}  Bg4 {[%clk 0:01:12]} 32. Bd6+ {[%clk 0:00:06]}  Bxd6 {[%clk 0:01:09]} 33. Rxd2 {[%clk 0:00:06]}  Bc5+ {[%clk 0:01:09]} 34. Kg2 {[%clk 0:00:06]}  Ke7 {[%clk 0:01:08]} 35. h3 {[%clk 0:00:05]}  Be6 {[%clk 0:01:08]} 36. g4 {[%clk 0:00:05]}  a5 {[%clk 0:01:08]} 37. f5 {[%clk 0:00:05]}  Bb3 {[%clk 0:01:08]} 38. h4 {[%clk 0:00:03]}  a4 {[%clk 0:01:08]} 39. g5 {[%clk 0:00:03]}  hxg5 {[%clk 0:01:08]} 40. hxg5 {[%clk 0:00:03]}  a3 {[%clk 0:01:09]} 41. Re2+ {[%clk 0:00:01]}  Kf8 {[%clk 0:01:09]} 42. f6 {[%clk 0:00:01]}  a2 {[%clk 0:01:05]} 43. Re1 {[%clk 0:00:01]}  Bd4 {[%clk 0:01:04]} 44. g6 {[%clk 0:00:01]}  a1=Q {[%clk 0:01:01]} 45. Rxa1 {[%clk 0:00:01]}  Bxa1 {[%clk 0:01:01]} 0-1


[Site "https://www.chess.com"]

[Event "Titled Tuesday Blitz March 21 Early 2023"]
[White "Jaskolka, Tomasz"]
[Black "Korpics, Zsolt"]
[WhiteFideId "1170791"]
[BlackFideId "705241"]
[WhiteElo "2155"]
[BlackElo "2309"]
[Result "0-1"]
[Round "11"]
[TimeControl "180+2"]
[Date "2023.03.21"]
[WhiteClock "0:00:07"]
[BlackClock "0:00:11"]

1. e4 {[%clk 0:03:00]}  c5 {[%clk 0:02:59]} 2. Nf3 {[%clk 0:02:59]}  e6 {[%clk 0:02:59]} 3. b4 {[%clk 0:02:57]}  b6 {[%clk 0:02:58]} 4. bxc5 {[%clk 0:02:55]}  bxc5 {[%clk 0:02:58]} 5. Bb2 {[%clk 0:02:54]}  Bb7 {[%clk 0:02:58]} 6. Nc3 {[%clk 0:02:54]}  Nc6 {[%clk 0:02:54]} 7. d4 {[%clk 0:02:51]}  cxd4 {[%clk 0:02:53]} 8. Nxd4 {[%clk 0:02:52]}  Qb6 {[%clk 0:02:47]} 9. Nb3 {[%clk 0:02:48]}  a5 {[%clk 0:02:41]} 10. a4 {[%clk 0:02:40]}  Nf6 {[%clk 0:02:39]} 11. Nb5 {[%clk 0:02:13]}  Nxe4 {[%clk 0:02:25]} 12. Qf3 {[%clk 0:02:10]}  Nb4 {[%clk 0:02:06]} 13. Bd3 {[%clk 0:01:49]}  Nc5 {[%clk 0:02:05]} 14. Qg3 {[%clk 0:01:43]}  Nbxd3+ {[%clk 0:02:05]} 15. cxd3 {[%clk 0:01:42]}  Nxb3 {[%clk 0:02:03]} 16. Nc7+ {[%clk 0:01:30]}  Kd8 {[%clk 0:02:01]} 17. Nxa8 {[%clk 0:01:28]}  Qb4+ {[%clk 0:01:59]} 18. Ke2 {[%clk 0:01:25]}  Bxa8 {[%clk 0:01:28]} 19. Rab1 {[%clk 0:01:16]}  Bd6 {[%clk 0:01:05]} 20. Qg5+ {[%clk 0:00:53]}  Be7 {[%clk 0:00:53]} 21. Qe3 {[%clk 0:00:50]}  Bc5 {[%clk 0:00:43]} 22. Qg5+ {[%clk 0:00:46]}  f6 {[%clk 0:00:39]} 23. Bxf6+ {[%clk 0:00:38]}  gxf6 {[%clk 0:00:39]} 24. Qxf6+ {[%clk 0:00:39]}  Kc7 {[%clk 0:00:39]} 25. Qe5+ {[%clk 0:00:27]}  d6 {[%clk 0:00:20]} 26. Qg7+ {[%clk 0:00:27]}  Kb6 {[%clk 0:00:21]} 27. Rhd1 {[%clk 0:00:11]}  Rc8 {[%clk 0:00:16]} 28. Qd7 {[%clk 0:00:08]}  Rc7 {[%clk 0:00:15]} 29. Qxe6 {[%clk 0:00:08]}  Nd4+ {[%clk 0:00:13]} 30. Kf1 {[%clk 0:00:08]}  Nxe6 {[%clk 0:00:14]} 31. Rxb4+ {[%clk 0:00:08]}  Bxb4 {[%clk 0:00:15]} 32. f3 {[%clk 0:00:08]}  Rc2 {[%clk 0:00:14]} 33. h4 {[%clk 0:00:08]}  Bc5 {[%clk 0:00:14]} 34. d4 {[%clk 0:00:08]}  Bxd4 {[%clk 0:00:13]} 35. Rb1+ {[%clk 0:00:08]}  Kc7 {[%clk 0:00:13]} 36. g4 {[%clk 0:00:09]}  Rf2+ {[%clk 0:00:12]} 37. Ke1 {[%clk 0:00:09]}  Nf4 {[%clk 0:00:12]} 38. h5 {[%clk 0:00:07]}  Nd3+ {[%clk 0:00:12]} 39. Kd1 {[%clk 0:00:07]}  Bxf3# {[%clk 0:00:11]} 0-1


[Site "https://www.chess.com"]